Cogmind - Beta 16 @@@ ROGUE MODE // 2025.10.25 @ 20:38:38 Player: Gilvian Result: Destroyed by S-10 Pest with Light Assault Rifle Performance ------------- Evolutions (0) 0 Regions Visited (4) 800 Robots Destroyed (10) 50 Value Destroyed (234) 234 Prototype IDs (0) 0 Alien Tech Used (0) 0 Bonus (300) 300 TOTAL SCORE: 1384 Bonus ------- Aligned with FarCom 300 Cogmind --------- Core Integrity 0/250 Matter 258/300 Energy 100/100 System Corruption 0% Temperature Cool (0) Movement Core (50) Location -9/Mines Parts ------- > --- POWER (1) -------- (None) > --- PROPULSION (2) --- (None) > --- UTILITY (2) ------ Structural Scanner Terrain Scanner > --- WEAPON (2) ------- (None) > --- INVENTORY (5) ---- Aluminum Leg Aluminum Leg Assault Rifle Assault Rifle Peak State ------------ > --- POWER ------------ Light Ion Engine > --- PROPULSION ------- Wheel > --- UTILITY ---------- Terrain Scanner Seismic Detector > --- WEAPON ----------- Grenade Launcher Mining Claw > --- INVENTORY -------- Aluminum Leg Aluminum Leg Structural Scanner Assault Rifle Assault Rifle [Rating: 6] Favorites ----------- Power Light Ion Engine Engine Light Ion Engine Propulsion Wheel Wheel Wheel Utility Terrain Scanner Device Terrain Scanner Weapon Mining Claw Ballistic Gun Assault Rifle Launcher Grenade Launcher Slashing Weapon Mining Claw Build | -11 -10 -10 -10 -9 ------- Run | Yrd Mat Min Exi Min Slots Evolved . | . . . . . Power . | . . . . . Propulsion . | . . . . . Utility . | . . . . . Weapon . | . . . . . Parts Attached 9 | 4 5 . . . Power 1 | 1 . . . . Engine 1 | 1 . . . . Core . | . . . . . Reactor . | . . . . . Propulsion 1 | 1 . . . . Treads . | . . . . . Leg . | . . . . . Wheel 1 | 1 . . . . Hover . | . . . . . Flight . | . . . . . Utility 3 | . 3 . . . Device 3 | . 3 . . . Storage . | . . . . . Processor . | . . . . . Hackware . | . . . . . Protection . | . . . . . Artifact . | . . . . . Weapon 4 | 2 2 . . . Energy Gun . | . . . . . Energy Cannon . | . . . . . Ballistic Gun 2 | 2 . . . . Ballistic Cannon . | . . . . . Launcher 1 | . 1 . . . Special Weapon . | . . . . . Impact Weapon . | . . . . . Slashing Weapon 1 | . 1 . . . Piercing Weapon . | . . . . . Special Melee Weapon . | . . . . . Unidentified Prototypes . | . . . . . Parts Lost 4 | . . . . 4 Power 1 | . . . . 1 Propulsion 1 | . . . . 1 Utility . | . . . . . Weapon 2 | . . . . 2 Highest Loss Streak 4 | . . . . 4 To Critical Strikes . | . . . . . Average Backups 3 | . 2 4 4 4 Power . | . . . . . Propulsion 1 | . . 2 2 2 Utility . | . . . . . Weapon 1 | . 1 2 2 2 Tool/Special . | . . . . . Unused Backups 3 | . . . . 3 Power 1 | . . . . 1 Propulsion 2 | . . . . 2 Utility . | . . . . . Weapon . | . . . . . Tool/Special . | . . . . . Average Slot Usage (%) 76 | . 65 85 85 66 Engine 13 | . 14 14 14 10 Wheel 13 | . 14 14 14 8 Device 21 | . 8 28 28 28 Ballistic Gun 3 | . 9 . . . Launcher 11 | . 7 14 14 6 Slashing Weapon 12 | . 10 14 14 14 Peak Build Rating 6 | 4 6 6 6 6 Average Rating 5 | 2 4 6 6 4 On Entrance 4 | . 4 6 6 6 Avg Prop Armor Cover (%) . | . . . . . Naked Turns . | . . . . . Heaviest Build 10 | 7 10 10 10 10 Greatest Support 10 | 10 10 10 10 10 Greatest Overweight (x) 2 | . . . . 2 Average Overweight (x) . | . . . . . Largest Inventory Capacity 5 | 5 5 5 5 5 Average Capacity 5 | 5 5 5 5 5 Most Carried 5 | 3 5 4 5 5 Average Carried 3 | . 2 4 4 4 Final Capacity 5 | 5 5 5 5 5 Final Carried 5 | . 4 4 5 4 Class Distribution -------------------- 91% | Mutant 8% | Assassin Dominant Class ---------------- Mutant | -10/Materials Mutant | -10/Mines Mutant | -10/Exiles Assassin | -9/Mines Resources | -11 -10 -10 -10 -9 ----------- Run | Yrd Mat Min Exi Min Matter Collected 298 | 181 117 . . . Remotely . | . . . . . Salvage Created 216 | . 216 . . . Parts 20 | . 20 . . . Haulers Intercepted . | . . . . . Recyclers Shooed 1 | . 1 . . . Parts Field Recycled . | . . . . . Retrieved Matter . | . . . . . Parts Self-Destructed . | . . . . . Prevented . | . . . . . Parts Restored . | . . . . . Kills | -11 -10 -10 -10 -9 ------- Run | Yrd Mat Min Exi Min Combat Hostiles Destroyed 8 | . 8 . . . Melee 3 | . 3 . . . AOE 5 | . 5 . . . Classes Destroyed 4 | . 4 . . . Builder 1 | . 1 . . . Operator 1 | . 1 . . . Swarmer 3 | . 3 . . . Grunt 5 | . 5 . . . Best Kill Streak 7 | . 7 . . . Combat Bots Only 6 | . 6 . . . Max Kills in Single Turn 4 | . 4 . . . Gunslinging . | . . . . . Exploded 3 | . 3 . . . Melee 1 | . 1 . . . Uniques/NPCs Destroyed . | . . . . . Combat | -11 -10 -10 -10 -9 -------- Run | Yrd Mat Min Exi Min Hostile Shots Fired 75 | . 23 . . 52 Missed 21 | . 10 . . 11 Hits 54 | . 13 . . 41 Projectile 54 | . 13 . . 41 Damage Taken 518 | . 206 . . 312 Core 259 | . 66 . . 193 Absorbed by Shields . | . . . . . Core Remaining (%) 100 | 100 . . . . Volleys Fired 6 | . 6 . . . Largest 1 | . 1 . . . Hottest 30 | . 30 . . . Shots Fired 6 | . 6 . . . Gun . | . . . . . Cannon . | . . . . . Launcher 6 | . 6 . . . Special . | . . . . . Kinetic . | . . . . . Thermal . | . . . . . Explosive 6 | . 6 . . . Electromagnetic . | . . . . . Robot Hit Streak 3 | . 3 . . . Robot Miss Streak 3 | . 3 . . . Penetration Max . | . . . . . Secondary Targets . | . . . . . Shots Hit Robots 14 | . 9 . . 5 Core Hits 12 | . 12 . . . Critical Kills . | . . . . . Critical Parts Destroyed . | . . . . . Critical Strikes . | . . . . . Melee Attacks 21 | . 10 . . 11 Impact . | . . . . . Slashing 21 | . 10 . . 11 Piercing . | . . . . . Sneak Attacks 2 | . 2 . . . Combat Hostiles 1 | . 1 . . . Follow-up Attacks . | . . . . . Damage Inflicted 699 | . 581 . . 118 Guns . | . . . . . Cannons . | . . . . . Explosions 375 | . 375 . . . Melee 324 | . 206 . . 118 Ramming . | . . . . . Kinetic . | . . . . . Thermal . | . . . . . Explosive 375 | . 375 . . . Electromagnetic . | . . . . . Impact . | . . . . . Slashing 324 | . 206 . . 118 Piercing . | . . . . . Highest Corruption . | . . . . . Average Corruption . | . . . . . Corruption Purged . | . . . . . Corruption Blocked . | . . . . . Overload Shots . | . . . . . Overflow Damage 62 | . 39 . . 23 Projectiles . | . . . . . Explosions . | . . . . . Melee 62 | . 39 . . 23 Knockbacks . | . . . . . Impact . | . . . . . Kinetic . | . . . . . Secondary . | . . . . . Self-Inflicted Damage 39 | . 39 . . . Shots 1 | . 1 . . . Rammed . | . . . . . Targets Rammed . | . . . . . Kicked . | . . . . . Crushed . | . . . . . Highest Temperature 10 | . 10 . . . Average Temperature 5 | . 5 . . . Received Heat Transfer 78 | . 78 . . . Siege Activations . | . . . . . Martial Activations . | . . . . . Shielding Activations . | . . . . . Robots Disrupted . | . . . . . Combat Hostiles . | . . . . . Robots Corrupted . | . . . . . Combat Hostiles . | . . . . . Parts Fried . | . . . . . Impact Corruptions . | . . . . . Robots Melted . | . . . . . Combat Hostiles . | . . . . . Parts Melted . | . . . . . Heat Transferred . | . . . . . Parts Sabotaged . | . . . . . Parts Stolen . | . . . . . Parts Stripped . | . . . . . Power Chain Reactions . | . . . . . Alert | -11 -10 -10 -10 -9 ------- Run | Yrd Mat Min Exi Min Maximum Alert Level . | . . . . . Low Security (%) 100 | 100 100 100 . 100 Level 1 . | . . . . . Level 2 . | . . . . . Level 3 . | . . . . . Level 4 . | . . . . . Level 5 . | . . . . . High Security . | . . . . . Max Security . | . . . . . Peak Influence 156 | . 156 49 . . Initial 49 | . . 49 . . Average 50 | . 70 34 . . Influence Increases 247 | . 247 . . . Destroy 0b10 Robot/C 160 | . 160 . . . Destroy 0b10 Robot/NC 10 | . 10 . . . Destroy Leader 30 | . 30 . . . Destroy Structure 17 | . 17 . . . Partial Spotted 15 | . 15 . . . Lose Combat Pursuer 15 | . 15 . . . Influence Decreases 247 | . 120 108 19 . Entered New Map 97 | . . 78 19 . Time Decay 150 | . 120 30 . . Squads Dispatched 1 | . 1 . . . Investigation . | . . . . . Extermination . | . . . . . Reinforcement 1 | . 1 . . . Assault . | . . . . . Garrison . | . . . . . Intercept . | . . . . . Searches Triggered . | . . . . . Construction Impeded . | . . . . . Haulers Reinforced . | . . . . . Active Scanning Responses . | . . . . . Cargo Convoy Interrupts . | . . . . . Stealth | -11 -10 -10 -10 -9 --------- Run | Yrd Mat Min Exi Min Distress Signals . | . . . . . Communications Jammed . | . . . . . Distress Signals . | . . . . . Times Spotted 16 | . 12 . . 4 Peak Tracking Total 4 | . 3 . . 4 Tactical Retreats 1 | . 1 . . . Traps | -11 -10 -10 -10 -9 ------- Run | Yrd Mat Min Exi Min Traps Triggered . | . . . . . Indirectly . | . . . . . Trap Hack Attempts . | . . . . . Triggered . | . . . . . Disarmed . | . . . . . Reprogrammed . | . . . . . Reused . | . . . . . Traps Extracted . | . . . . . Installed . | . . . . . Triggered . | . . . . . Machines | -11 -10 -10 -10 -9 ---------- Run | Yrd Mat Min Exi Min Machines Disabled . | . . . . . Max in Single Turn . | . . . . . Machines Repaired . | . . . . . Machines Dismantled . | . . . . . Machines Sabotaged . | . . . . . Overloaded Fab Kills . | . . . . . Hacking | -11 -10 -10 -10 -9 --------- Run | Yrd Mat Min Exi Min Machines Accessed 2 | . 1 . 1 . Terminals 1 | . 1 . . . Fabricators . | . . . . . Repair Stations . | . . . . . Recycling Units . | . . . . . Scanalyzers . | . . . . . Garrison Access . | . . . . . Total Hacks 25 | . 2 . 23 . Successful 25 | . 2 . 23 . Failed . | . . . . . Catastrophic . | . . . . . Database Lockouts . | . . . . . Manual . | . . . . . Terminals 2 | . 2 . . . Fabricators . | . . . . . Repair Stations . | . . . . . Recycling Units . | . . . . . Scanalyzers . | . . . . . Garrison Access . | . . . . . Terminal Hacks 25 | . 2 . 23 . Record 24 | . 1 . 23 . Dispatch Records 1 | . 1 . . . Fabricator Hacks . | . . . . . Repair Station Hacks . | . . . . . Recycling Unit Hacks . | . . . . . Scanalyzer . | . . . . . Garrison Access Hacks . | . . . . . Unauthorized Hacks . | . . . . . Terminals . | . . . . . Fabricators . | . . . . . Repair Stations . | . . . . . Recycling Units . | . . . . . Scanalyzers . | . . . . . Garrison Access . | . . . . . Data Cores Recovered . | . . . . . Used . | . . . . . Hacking Detections . | . . . . . Full Trace Events . | . . . . . Feedback Events . | . . . . . Feedback Blocked . | . . . . . Robot Schematics Acquired . | . . . . . Robots Built . | . . . . . Authchips . | . . . . . Time . | . . . . . Total Robot Build Rating . | . . . . . Part Schematics Acquired . | . . . . . Parts Built . | . . . . . Authchips . | . . . . . Time . | . . . . . Total Part Build Rating . | . . . . . Part Studies Acquired . | . . . . . Parts Repaired . | . . . . . Time . | . . . . . Parts Recycled . | . . . . . Recycled Matter . | . . . . . Retrieved Matter . | . . . . . Retrieved Components . | . . . . . Parts Scanalyzed . | . . . . . Part Schematics Acquired . | . . . . . Parts Damaged . | . . . . . Bothacking | -11 -10 -10 -10 -9 ------------ Run | Yrd Mat Min Exi Min Used RIF Installer . | . . . . . Robots Hacked . | . . . . . Non-combat . | . . . . . Combat . | . . . . . Robot Hacks Applied . | . . . . . Relay Couplers Released . | . . . . . Fabnet Peak Effective % . | . . . . . Robots Rewired . | . . . . . Allies Hacked . | . . . . . Hacks Repelled . | . . . . . Allies | -11 -10 -10 -10 -9 -------- Run | Yrd Mat Min Exi Min Total Allies . | . . . . . Largest Group . | . . . . . Highest-Rated Group . | . . . . . Highest-Rated Ally . | . . . . . Total Orders . | . . . . . Ally Attacks . | . . . . . Total Damage . | . . . . . Kills . | . . . . . Allies Corrupted . | . . . . . Allies Melted . | . . . . . Intel | -11 -10 -10 -10 -9 ------- Run | Yrd Mat Min Exi Min Active Infowar (turns) 682 | . 137 78 404 63 Terrain 611 | . 66 78 404 63 Structural 610 | . 65 78 404 63 Seismic 72 | . 72 . . . Robot Analysis Total . | . . . . . Derelict Logs Recovered . | . . . . . Drone Launches . | . . . . . Drone Recoveries . | . . . . . Exploration | -11 -10 -10 -10 -9 ------------- Run | Yrd Mat Min Exi Min Turns Passed 873 | 27 301 78 404 63 Spaces Moved 930 | 25 285 82 501 37 Core 2 | 1 . . . 1 Treads . | . . . . . Legs . | . . . . . Wheels 928 | 24 285 82 501 36 Hover . | . . . . . Flight . | . . . . . Fastest Speed 50 | 50 80 80 80 80 Average Speed 80 | 78 80 80 80 81 Slowest Speed 150 | 80 80 80 80 150 Overloaded Moves . | . . . . . Propulsion Burnouts . | . . . . . Robots Hopped . | . . . . . Potential Cave-ins . | . . . . . Cave-ins Triggered . | . . . . . Exploration Rate (%) 34 | 3 55 21 82 10 Regions Visited 4 Branch Regions 3 Pre-discovered Areas 1 | . . . 1 . Known Exits Taken . | . . . . . Unknown Exits Taken 4 | 1 1 1 1 . Scrap Searched . | . . . . . Spaces Dug . | . . . . . Terrain Destroyed 17 | . 17 . . . Melee . | . . . . . Projectile . | . . . . . AOE 17 | . 17 . . . Terrain Rammed . | . . . . . Walls Destroyed . | . . . . . Machines Disabled . | . . . . . Actions | -11 -10 -10 -10 -9 --------- Run | Yrd Mat Min Exi Min Total 1007 | 32 329 94 503 49 Wait 30 | . 16 13 1 . Move 926 | 24 284 81 500 37 Hop . | . . . . . Pick Up 11 | 4 6 . 1 . Fast Attach 1 | . 1 . . . Attach 5 | 4 1 . . . Detach . | . . . . . Swap 4 | . 4 . . . Drop 2 | . 1 . . 1 Fire 6 | . 6 . . . Melee 21 | . 10 . . 11 Ram . | . . . . . Kick . | . . . . . Crush . | . . . . . Escape Stasis . | . . . . . Rewire 1 | . . . 1 . Trap . | . . . . . Miscellaneous . | . . . . . Route ------- -11/Scrapyard -10/Materials (discovered 3 exits: [*Mat] / [*Min x2]) -10/Mines -10/Exiles -9/Mines History --------- Turn | Location | Event 13 | -11/Scrapyard | Discovered new exit (range 16) 28 | -11/Scrapyard | Entered Materials 103 | -10/Materials | Discovered new exit (range 13) 106 | -10/Materials | Met 8R-AWN 242 | -10/Materials | Discovered new exit (range 7) 248 | -10/Materials | Discovered new exit (range 10) 306 | -10/Materials | Build established: Mutant 329 | -10/Materials | Entered Mines 330 | -10/Mines | Followed 8R-AWN into the Mines 404 | -10/Mines | Discovered new exit (range 5) 407 | -10/Mines | Entered Exiles 429 | -10/Exiles | Welcomed by 8R-AWN 448 | -10/Exiles | Met EX-HEX 485 | -10/Exiles | Met EX-DEC 510 | -10/Exiles | Learned location of Zion (-7) 532 | -10/Exiles | Met EX-BIN 543 | -10/Exiles | Aligned with FarCom system 544 | -10/Exiles | Given EX-Vault access code 664 | -10/Exiles | Visited The Gauntlet 783 | -10/Exiles | Learned about 8R-AWN's background 800 | -10/Exiles | Discovered new exit (range 15) 811 | -10/Exiles | Entered Mines 843 | -9/Mines | Met a Derelict bent on vengeance 856 | -9/Mines | Core integrity fell below 50% 868 | -9/Mines | Core integrity fell below 20% 874 | -9/Mines | Destroyed by S-10 Pest with Light Assault Rifle Last Messages --------------- their own, not wanting to become some "cog in a war machine." I'm on board with that. EXIT=FOUND LOCATION=UNKNOWN GOAL=ESCAPE Receiving FarCom transmissions... K-01 Serf collects debris. Dropped Rigged Nuclear Core. Grenade Launcher destroyed. T-07 Excavator destroyed. Rigged Nuclear Core explodes. S-10 Pest destroyed. Wheel destroyed. Destroyed Flight Unit. K-01 Serf collects debris. Lgt. Ion Engine destroyed. K-01 Serf collects debris. Destroyed Lgt. Assault Rifle. Mining Claw destroyed. Map ----- +----------------------------------------------------+ | ???????????????????????############?????????????? | | ???????????????????????############?????????????? | | ???????????????????????## ##?????????????? | | ???????????????????????## ##?????????????? | | ???????????????????????## ##????#????????? | | ???????????????????????## """ ##?????????????? | | ???????????????????????## """ ##?????????????? | | ???????????????????????## """ ##?????????????? | | ???????????????????????## ##?????????????? | | ???????????????????????## ##?????????????? | | ???????????????????????##### ######?????????????? | | ???????????????????????##### ######?#???????????? | | ????????????????#??????##### ##?????????????????? | | ???????????????????#???##### ##?????????????????? | | ??????????????????#????## ##?#???????????????? | | ???????????????????????## #####?????????????????? | | ?????????????????#?????## #### ?? ??????????????? | | ?????????????? ????????## ##???? ???????????????? | | ???????????????????????## ###???????????????????? | | ???????????????????????## ##????????????????????? | | ??????????#????????????## ##????????????????????? | | ??????????????????####### ##??? ????????????????? | | ?????????????????######## ##???? ???????????????? | | ?????????????????###";;## ##????????????????????? | | ?????????????????##" s%##### ? ##????????????? | | ?????????????????##"%""##@##### ##????????????? | | ???????????????? #" #"## ###????????????? | | ???????????????? ? ss#########?????????????? | | ?????????????? ? ? #########?????????????? | | ???????????? ?? #####??????#?????????????? | | ??????????? ???? ######????????????????????? | | ??????????????? ####??#?????????????????????? | | ??????????? ####?????????????????????????? | | ???????????##### ??????????????????????????????? | | ???????????#######?????#????????????????????????? | | ??????????????####??????????????????????????????? | | ????????????????????????????????????????????????? | | ???????????????????#????????????????????????????? | | ??????????????????????#?????????????????????????? | | | | | | | | | | | | | | | | | | | | | | | +----------------------------------------------------+ Best States ------------- Heat Dissipation 25 Energy Generation 10 Energy Capacity 125 Matter Stores 300 Matter Capacity 300 Sight Range 16 Terrain Scan Range 14 Terrain Scan Density 10 Evasion (%) 44 Item Schematics ----------------- None Robot Schematics ------------------ None Fabricated ------------ Nothing Repaired ---------- Nothing Studied --------- None Alien Tech Used ----------------- None Achievements -------------- Follow The Leader Librarian Sixth Sense Challenges ------------ None Game ------ Seed AssaultHelicalSink Manual? 0 Play Time 00:16:58 Cumulative 7.9 hours Start 2025.10.25 @ 19:55:35 End 2025.10.25 @ 20:38:38 Sessions 1 Manual Loads 0 Difficulty Rogue Special Mode None Game No. 25 Rogue 25 Adventurer 0 Explorer 0 Win Type - Total 0 Types 0/0/0/0/0/0/0/0/0/0 Lore% 5 Gallery% 10 Achievement% 9 Wizard Run 0 Options --------- Layout 1 ASCII 0 Keyboard 0 Movement Numpad Keybinds 0 Fullscreen 1 Font 24/Smallcaps Map View 50x35 Zoom Use 0% Tactical HUD 0 Map Filters NONE Filters NONE Steam 1 RUN: 1e1396d1-e2a1-4611-b25e-ac4e7ec92272